{"text_format":"3","workbook":"xlsx","n_sheets":3,"sheets":["Začetek","Proračun za darila in sledilnik","Podatki"],"not_rendered":{"charts":1,"defined_names":1},"read":"whole","date_system":"1900"}

{"sheet":"Začetek","index":0,"n_rows":7,"n_cols":2,"rows_kept":7}
[null,"Več informacij o predlogi"]
[null,"S to predlogo zabeležite nakupe daril in jih spremljajte glede na proračun."]
[null,"V tabelo vnesite imena družinskih članov in prijateljev, darilne artikle, predvidene in porabljene zneske. Vnesite tudi opombe ter izberite mesec in priložnost dogodka."]
[null,"Grafikon z mesečnim pregledom je samodejno posodobljen."]
[null,"Opomba: "]
[null,"Dodatna navodila so na voljo v stolpcu A na delovnem listu PRORAČUN ZA DARILA IN SLEDILNIK. To besedilo je namerno skrito. Če želite besedilo premakniti, izberite stolpec A, nato izberite še IZBRIŠI. Če želite besedilo razkriti, izberite stolpec A, nato zamenjajte barvo pisave."]
[null,"Če želite pridobiti več informacij o tabelah, v tabeli pritisnite tipko SHIFT in nato F10, izberite možnost TABELA, nato pa izberite NADOMESTNO BESEDILO."]

{"sheet":"Proračun za darila in sledilnik","index":1,"n_rows":10,"n_cols":13,"rows_kept":10,"merged":[[0,1,0,4],[0,5,0,12],[1,1,1,2],[2,1,2,12],[3,1,3,3]]}
["Na tem delovnem listu ustvarite osebni proračun za darila in sledilnik. Naslov tega delovnega lista je v celici na desni, navodila pa so v celici F1. Koristna navodila za uporabo tega delovnega lista najdete v celicah v tem stolpcu.","Proračun za darila in sledilnik",{"$nulls":3},"Izpolnite čim več na začetku vsakega novega leta. Vnesite imena družinskih članov in prijateljev, izberite priložnost za darilo, mesec dogodka in vnesite, koliko želite porabiti. Vsaka oseba se lahko v tabeli prikaže večkrat za vsako posamezno priložnost (rojstni dan, praznik, zabava itd.)."]
["Oznaka »Mesečni pregled« je v celici na desni, navodila pa so v celici D2.","Mesečni pregled",null,"Uporabite graf za ogled prihajajočih mesecev, da boste lahko načrtovali vnaprej. Zabeležite nakupe in jih spremljajte glede na proračun."]
["Stolpčni grafikon za predvidene zneske s prekrivnim črtnim grafikonom za porabljeni znesek je v celici na desni.","Stolpčni grafikon za predvidene zneske s prekrivnim črtnim grafikonom za porabljeni znesek je v tej celici."]
["Oznaka »Proračun za darila« in »Sledilnik« je v celici na desni.","Proračun za darila in sledilnik"]
["Podrobnosti vnesite v tabelo »Sledilnik proračuna«, ki se začne v celici na desni.","Oseba","Priložnost","Mesec","Znesek\npredvideno","Znesek\nporabljeno","Darilo","Povezava do darila","V trgovini/\nSplet","Kupljeno?","Zavito?","Dostavljeno?","Opombe"]
[null,"Ime 1","Rojstni dnevi","Junij",{"v":50,"d":"50 €"},{"v":30,"d":"30 €"},"Čevlji","Prodajalec","Splet","Da","Ne","Ne","Vstopnice za kino, 16. 6."]
[null,"Ime 2","Obletnice","April",{"v":20,"d":"20 €"},{"v":20,"d":"20 €"},"Mačka","Prodajalec","V trgovini","Ne","Ne","Ne","Omenil je, da so mu všeč psi"]
[null,"Ime 3","Prazniki","Julij",{"v":50,"d":"50 €"},{"v":70,"d":"70 €"},"Slušalke","Prodajalec","Splet","Ne","Ne","Ne","Stvari za študentski dom"]
[null,"Ime 4","Rojstni dnevi","Januar",{"v":20,"d":"20 €"},{"v":30,"d":"30 €"},"Igra","Prodajalec","V trgovini","Da","Da","Da"]
[null,"Ime 5","Poroke","Junij",{"v":100,"d":"100 €"},{"v":150,"d":"150 €"},"Kristalna vaza","Prodajalec","V trgovini","Da","Da","Ne"]

{"sheet":"Podatki","index":2,"n_rows":13,"n_cols":8,"rows_kept":13,"hidden":true}
["Priložnosti",null,"Datum","Datum","Predvideni znesek\nRojstni dnevi","Predvideni znesek\nPrazniki","Predvideni znesek\nDrugo","Porabljeni znesek"]
["Rojstni dnevi",null,"Januar","Jan",{"$f":"SUMIFS(SledilnikProračuna[Znesek\npredvideno],SledilnikProračuna[Mesec],\"Januar\",SledilnikProračuna[Priložnost],\"Rojstni dnevi\")","v":{"v":20,"d":"20 €"}},{"$f":"SUMIFS(SledilnikProračuna[Znesek\npredvideno],SledilnikProračuna[Mesec],\"Januar\",SledilnikProračuna[Priložnost],\"Prazniki\")","v":{"v":0,"d":"0 €"}},{"$f":"SUMIFS(SledilnikProračuna[Znesek\npredvideno],SledilnikProračuna[Mesec],\"Januar\",SledilnikProračuna[Priložnost],\"<>Prazniki\",SledilnikProračuna[Priložnost],\"<>Rojstni dnevi\")","v":{"v":0,"d":"0 €"}},{"$f":"SUMIFS(SledilnikProračuna[Znesek\nporabljeno],SledilnikProračuna[Mesec],\"Januar\")","v":{"v":30,"d":"30 €"}}]
["Prazniki",null,"Februar","Feb",{"$f":"SUMIFS(SledilnikProračuna[Znesek\npredvideno],SledilnikProračuna[Mesec],\"Februar\",SledilnikProračuna[Priložnost],\"Rojstni dnevi\")","v":{"v":0,"d":"0 €"}},{"$f":"SUMIFS(SledilnikProračuna[Znesek\npredvideno],SledilnikProračuna[Mesec],\"Februar\",SledilnikProračuna[Priložnost],\"Prazniki\")","v":{"v":0,"d":"0 €"}},{"$f":"SUMIFS(SledilnikProračuna[Znesek\npredvideno],SledilnikProračuna[Mesec],\"Februar\",SledilnikProračuna[Priložnost],\"<>Prazniki\",SledilnikProračuna[Priložnost],\"<>Rojstni dnevi\")","v":{"v":0,"d":"0 €"}},{"$f":"SUMIFS(SledilnikProračuna[Znesek\nporabljeno],SledilnikProračuna[Mesec],\"Februar\")","v":{"v":0,"d":"0 €"}}]
["Obletnice",null,"Marec","Mar",{"$f":"SUMIFS(SledilnikProračuna[Znesek\npredvideno],SledilnikProračuna[Mesec],\"Marec\",SledilnikProračuna[Priložnost],\"Rojstni dnevi\")","v":{"v":0,"d":"0 €"}},{"$f":"SUMIFS(SledilnikProračuna[Znesek\npredvideno],SledilnikProračuna[Mesec],\"Marec\",SledilnikProračuna[Priložnost],\"Prazniki\")","v":{"v":0,"d":"0 €"}},{"$f":"SUMIFS(SledilnikProračuna[Znesek\npredvideno],SledilnikProračuna[Mesec],\"Marec\",SledilnikProračuna[Priložnost],\"<>Prazniki\",SledilnikProračuna[Priložnost],\"<>Rojstni dnevi\")","v":{"v":0,"d":"0 €"}},{"$f":"SUMIFS(SledilnikProračuna[Znesek\nporabljeno],SledilnikProračuna[Mesec],\"Marec\")","v":{"v":0,"d":"0 €"}}]
["Poroke",null,"April","Apr",{"$f":"SUMIFS(SledilnikProračuna[Znesek\npredvideno],SledilnikProračuna[Mesec],\"April\",SledilnikProračuna[Priložnost],\"Rojstni dnevi\")","v":{"v":0,"d":"0 €"}},{"$f":"SUMIFS(SledilnikProračuna[Znesek\npredvideno],SledilnikProračuna[Mesec],\"April\",SledilnikProračuna[Priložnost],\"Prazniki\")","v":{"v":0,"d":"0 €"}},{"$f":"SUMIFS(SledilnikProračuna[Znesek\npredvideno],SledilnikProračuna[Mesec],\"April\",SledilnikProračuna[Priložnost],\"<>Prazniki\",SledilnikProračuna[Priložnost],\"<>Rojstni dnevi\")","v":{"v":20,"d":"20 €"}},{"$f":"SUMIFS(SledilnikProračuna[Znesek\nporabljeno],SledilnikProračuna[Mesec],\"April\")","v":{"v":20,"d":"20 €"}}]
["Zabave za nevesto",null,"Maj","Maj",{"$f":"SUMIFS(SledilnikProračuna[Znesek\npredvideno],SledilnikProračuna[Mesec],\"Maj\",SledilnikProračuna[Priložnost],\"Rojstni dnevi\")","v":{"v":0,"d":"0 €"}},{"$f":"SUMIFS(SledilnikProračuna[Znesek\npredvideno],SledilnikProračuna[Mesec],\"Maj\",SledilnikProračuna[Priložnost],\"Prazniki\")","v":{"v":0,"d":"0 €"}},{"$f":"SUMIFS(SledilnikProračuna[Znesek\npredvideno],SledilnikProračuna[Mesec],\"Maj\",SledilnikProračuna[Priložnost],\"<>Prazniki\",SledilnikProračuna[Priložnost],\"<>Rojstni dnevi\")","v":{"v":0,"d":"0 €"}},{"$f":"SUMIFS(SledilnikProračuna[Znesek\nporabljeno],SledilnikProračuna[Mesec],\"Maj\")","v":{"v":0,"d":"0 €"}}]
["Zabave za rojstvo otroka",null,"Junij","Jun",{"$f":"SUMIFS(SledilnikProračuna[Znesek\npredvideno],SledilnikProračuna[Mesec],\"Junij\",SledilnikProračuna[Priložnost],\"Rojstni dnevi\")","v":{"v":50,"d":"50 €"}},{"$f":"SUMIFS(SledilnikProračuna[Znesek\npredvideno],SledilnikProračuna[Mesec],\"Junij\",SledilnikProračuna[Priložnost],\"Prazniki\")","v":{"v":0,"d":"0 €"}},{"$f":"SUMIFS(SledilnikProračuna[Znesek\npredvideno],SledilnikProračuna[Mesec],\"Junij\",SledilnikProračuna[Priložnost],\"<>Prazniki\",SledilnikProračuna[Priložnost],\"<>Rojstni dnevi\")","v":{"v":100,"d":"100 €"}},{"$f":"SUMIFS(SledilnikProračuna[Znesek\nporabljeno],SledilnikProračuna[Mesec],\"Junij\")","v":{"v":180,"d":"180 €"}}]
["Čestitke",null,"Julij","Jul",{"$f":"SUMIFS(SledilnikProračuna[Znesek\npredvideno],SledilnikProračuna[Mesec],\"Julij\",SledilnikProračuna[Priložnost],\"Rojstni dnevi\")","v":{"v":0,"d":"0 €"}},{"$f":"SUMIFS(SledilnikProračuna[Znesek\npredvideno],SledilnikProračuna[Mesec],\"Julij\",SledilnikProračuna[Priložnost],\"Prazniki\")","v":{"v":50,"d":"50 €"}},{"$f":"SUMIFS(SledilnikProračuna[Znesek\npredvideno],SledilnikProračuna[Mesec],\"Julij\",SledilnikProračuna[Priložnost],\"<>Prazniki\",SledilnikProračuna[Priložnost],\"<>Rojstni dnevi\")","v":{"v":0,"d":"0 €"}},{"$f":"SUMIFS(SledilnikProračuna[Znesek\nporabljeno],SledilnikProračuna[Mesec],\"Julij\")","v":{"v":70,"d":"70 €"}}]
["Drugo",null,"Avgust","Avg",{"$f":"SUMIFS(SledilnikProračuna[Znesek\npredvideno],SledilnikProračuna[Mesec],\"Avgust\",SledilnikProračuna[Priložnost],\"Rojstni dnevi\")","v":{"v":0,"d":"0 €"}},{"$f":"SUMIFS(SledilnikProračuna[Znesek\npredvideno],SledilnikProračuna[Mesec],\"Avgust\",SledilnikProračuna[Priložnost],\"Prazniki\")","v":{"v":0,"d":"0 €"}},{"$f":"SUMIFS(SledilnikProračuna[Znesek\npredvideno],SledilnikProračuna[Mesec],\"Avgust\",SledilnikProračuna[Priložnost],\"<>Prazniki\",SledilnikProračuna[Priložnost],\"<>Rojstni dnevi\")","v":{"v":0,"d":"0 €"}},{"$f":"SUMIFS(SledilnikProračuna[Znesek\nporabljeno],SledilnikProračuna[Mesec],\"Avgust\")","v":{"v":0,"d":"0 €"}}]
[null,null,"September","Sep",{"$f":"SUMIFS(SledilnikProračuna[Znesek\npredvideno],SledilnikProračuna[Mesec],\"September\",SledilnikProračuna[Priložnost],\"Rojstni dnevi\")","v":{"v":0,"d":"0 €"}},{"$f":"SUMIFS(SledilnikProračuna[Znesek\npredvideno],SledilnikProračuna[Mesec],\"September\",SledilnikProračuna[Priložnost],\"Prazniki\")","v":{"v":0,"d":"0 €"}},{"$f":"SUMIFS(SledilnikProračuna[Znesek\npredvideno],SledilnikProračuna[Mesec],\"September\",SledilnikProračuna[Priložnost],\"<>Prazniki\",SledilnikProračuna[Priložnost],\"<>Rojstni dnevi\")","v":{"v":0,"d":"0 €"}},{"$f":"SUMIFS(SledilnikProračuna[Znesek\nporabljeno],SledilnikProračuna[Mesec],\"September\")","v":{"v":0,"d":"0 €"}}]
[null,null,"Oktober","Okt",{"$f":"SUMIFS(SledilnikProračuna[Znesek\npredvideno],SledilnikProračuna[Mesec],\"Oktober\",SledilnikProračuna[Priložnost],\"Rojstni dnevi\")","v":{"v":0,"d":"0 €"}},{"$f":"SUMIFS(SledilnikProračuna[Znesek\npredvideno],SledilnikProračuna[Mesec],\"Oktober\",SledilnikProračuna[Priložnost],\"Prazniki\")","v":{"v":0,"d":"0 €"}},{"$f":"SUMIFS(SledilnikProračuna[Znesek\npredvideno],SledilnikProračuna[Mesec],\"Oktober\",SledilnikProračuna[Priložnost],\"<>Prazniki\",SledilnikProračuna[Priložnost],\"<>Rojstni dnevi\")","v":{"v":0,"d":"0 €"}},{"$f":"SUMIFS(SledilnikProračuna[Znesek\nporabljeno],SledilnikProračuna[Mesec],\"Oktober\")","v":{"v":0,"d":"0 €"}}]
[null,null,"November","Nov",{"$f":"SUMIFS(SledilnikProračuna[Znesek\npredvideno],SledilnikProračuna[Mesec],\"November\",SledilnikProračuna[Priložnost],\"Rojstni dnevi\")","v":{"v":0,"d":"0 €"}},{"$f":"SUMIFS(SledilnikProračuna[Znesek\npredvideno],SledilnikProračuna[Mesec],\"November\",SledilnikProračuna[Priložnost],\"Prazniki\")","v":{"v":0,"d":"0 €"}},{"$f":"SUMIFS(SledilnikProračuna[Znesek\npredvideno],SledilnikProračuna[Mesec],\"November\",SledilnikProračuna[Priložnost],\"<>Prazniki\",SledilnikProračuna[Priložnost],\"<>Rojstni dnevi\")","v":{"v":0,"d":"0 €"}},{"$f":"SUMIFS(SledilnikProračuna[Znesek\nporabljeno],SledilnikProračuna[Mesec],\"November\")","v":{"v":0,"d":"0 €"}}]
[null,null,"December","Dec",{"$f":"SUMIFS(SledilnikProračuna[Znesek\npredvideno],SledilnikProračuna[Mesec],\"December\",SledilnikProračuna[Priložnost],\"Rojstni dnevi\")","v":{"v":0,"d":"0 €"}},{"$f":"SUMIFS(SledilnikProračuna[Znesek\npredvideno],SledilnikProračuna[Mesec],\"December\",SledilnikProračuna[Priložnost],\"Prazniki\")","v":{"v":0,"d":"0 €"}},{"$f":"SUMIFS(SledilnikProračuna[Znesek\npredvideno],SledilnikProračuna[Mesec],\"December\",SledilnikProračuna[Priložnost],\"<>Prazniki\",SledilnikProračuna[Priložnost],\"<>Rojstni dnevi\")","v":{"v":0,"d":"0 €"}},{"$f":"SUMIFS(SledilnikProračuna[Znesek\nporabljeno],SledilnikProračuna[Mesec],\"December\")","v":{"v":0,"d":"0 €"}}]